[Event "1st Archibald 2019"]
[Site "Sochi"]
[Date "2019.05.18"]
[Round "8.17"]
[White "Zakaryan, David"]
[Black "Dashko, Andrey"]
[Result "1-0"]
[ECO "A29"]
[WhiteElo "2350"]
[BlackElo "2211"]
[Annotator "NA"]
[PlyCount "95"]
[EventDate "2019.05.12"]
[EventType "swiss"]
[EventCountry "RUS"]
[SourceTitle "playchess.com"]
[Source "ChessBase"]
[SourceQuality "1"]
[TimeControl "5400+30"]

1. c4 {[%emt 0:00:00]} e5 {[%emt 0:03:34]} 2. Nc3 {[%emt 0:00:11]} Nf6 {[%emt 0:00:05]} 3. Nf3 {[%emt 0:00:08]} Nc6 {[%emt 0:00:06]} 4. g3 {[%emt 0:02:39]} d5 {[%emt 0:01:33]} 5. cxd5 {[%emt 0:00:23]} Nxd5 {[%emt 0:00:02]} 6. Bg2 {[%emt 0:00:09]} Be6 {[%emt 0:00:07]} 7. O-O {[%emt 0:01:51]} Be7 {[%emt 0:01:23]} 8. d4 {[%emt 0:06:51]} exd4 {[%emt 0:12:29]} 9. Nxd4 {[%emt 0:00:28]} Nxc3 {[%emt 0:01:59]} 10. bxc3 {[%emt 0:00:16]} Nxd4 {[%emt 0:00:13]} 11. cxd4 {[%emt 0:00:49]} c6 {[%emt 0:00:01]} 12. e4 {[%emt 0:01:14]} O-O {[%emt 0:01:26]} 13. d5 {[%emt 0:03:12]} cxd5 {[%emt 0:02:54]} 14. exd5 {[%emt 0:00:01]} Bf5 {[%emt 0:00:08]} 15. Qb3 {[%emt 0:06:26]} Qd7 {[%emt 0:01:59]} 16. Bf4 {[%emt 0:01:03]} Bc5 {[%emt 0:00:54]} 17. d6 {[%emt 0:01:24]} Rab8 {[%emt 0:01:41]} 18. Rfe1 {[%emt 0:11:17]} Be6 {[%emt 0:05:01]} 19. Bd5 {[%emt 0:02:35]} Rfe8 {[%emt 0:00:02]} 20. Bxe6 {[%emt 0:00:09]} Rxe6 {[%emt 0:00:08]} 21. Rxe6 {[%emt 0:00:05]} fxe6 {[%emt 0:00:07]} 22. Re1 {[%emt 0:00:45]} Re8 {[%emt 0:00:04]} 23. h4 {[%emt 0:01:58]} b6 {[%emt 0:03:34]} 24. Re2 {[%emt 0:00:22]} Kh8 {[%emt 0:02:35]} 25. Be5 {[%emt 0:00:53]} Qf7 {[%emt 0:01:33]} 26. Kg2 {[%emt 0:00:33]} Rd8 {[%emt 0:00:09]} 27. Rd2 {[%emt 0:02:11]} Kg8 {[%emt 0:00:18]} 28. f4 {[%emt 0:00:58]} h5 {[%emt 0:04:41]} 29. Qf3 {[%emt 0:00:35]} Qe8 {[%emt 0:05:48]} 30. Kh3 {[%emt 0:01:00]} Rd7 {[%emt 0:02:35]} 31. g4 {[%emt 0:00:20]} hxg4+ {[%emt 0:00:31]} 32. Qxg4 {[%emt 0:00:01]} Qf7 {[%emt 0:00:10]} 33. h5 {[%emt 0:00:22]} Kf8 {[%emt 0:00:41]} 34. Qg6 {[%emt 0:01:30]} a6 {[%emt 0:19:38]} 35. Kg4 {[%emt 0:00:06]} Ke8 {[%emt 0:00:38]} 36. Rd1 {[%emt 0:01:49]} Kf8 {[%emt 0:01:03]} 37. Kg5 {[%emt 0:02:11]} Ke8 {[%emt 0:00:41]} 38. Rd3 {[%emt 0:08:16]} Kf8 {[%emt 0:02:20]} 39. Qh7 {[%emt 0:02:02]} b5 {[%emt 0:01:36]} 40. Qh8+ {[%emt 0:02:53]} Qg8 {[%emt 0:00:01]} 41. Qxg8+ {[%emt 0:00:07]} Kxg8 {[%emt 0:00:06]} 42. h6 {[%emt 0:00:28]} Kf7 {[%emt 0:00:24]} 43. hxg7 {[%emt 0:00:30]} b4 {[%emt 0:01:53]} 44. f5 {[%emt 0:01:15]} exf5 {[%emt 0:00:26]} 45. Kxf5 {[%emt 0:00:02]} Rd8 {[%emt 0:02:35]} 46. Rd5 {[%emt 0:00:49]} Bb6 {[%emt 0:00:26]} 47. Bd4 {[%emt 0:03:31]} Bc7 {[%emt 0:01:17]} 48. dxc7 {[%emt 0:00:15]} 1-0

[Event "1st Archibald 2019"]
[Site "Sochi"]
[Date "2019.05.18"]
[Round "8.18"]
[White "Novikov, Evgenij"]
[Black "Solozhenkina, Elizaveta"]
[Result "1/2-1/2"]
[ECO "A09"]
[WhiteElo "2148"]
[BlackElo "2329"]
[Annotator "NA"]
[PlyCount "134"]
[EventDate "2019.05.12"]
[EventType "swiss"]
[EventCountry "RUS"]
[SourceTitle "playchess.com"]
[Source "ChessBase"]
[SourceQuality "1"]
[TimeControl "5400+30"]

1. Nf3 {[%emt 0:00:00]} Nf6 {[%emt 0:00:21]} 2. c4 {[%emt 0:00:06]} e6 {[%emt 0:00:18]} 3. g3 {[%emt 0:00:20]} d5 {[%emt 0:00:26]} 4. Bg2 {[%emt 0:01:10]} d4 {[%emt 0:00:12]} 5. O-O {[%emt 0:01:23]} c5 {[%emt 0:00:06]} 6. d3 {[%emt 0:01:03]} Nc6 {[%emt 0:00:37]} 7. e3 {[%emt 0:00:48]} Bd6 {[%emt 0:00:44]} 8. exd4 {[%emt 0:00:51]} cxd4 {[%emt 0:00:07]} 9. a3 {[%emt 0:00:27]} a5 {[%emt 0:01:06]} 10. Bg5 {[%emt 0:03:14]} h6 {[%emt 0:00:19]} 11. Bxf6 {[%emt 0:00:06]} Qxf6 {[%emt 0:00:08]} 12. Nbd2 {[%emt 0:01:38]} Qe7 {[%emt 0:01:07]} 13. Ne4 {[%emt 0:01:42]} Bc7 {[%emt 0:01:16]} 14. b4 {[%emt 0:01:15]} axb4 {[%emt 0:01:20]} 15. axb4 {[%emt 0:00:06]} Rxa1 {[%emt 0:00:08]} 16. Qxa1 {[%emt 0:00:04]} Qxb4 {[%emt 0:03:52]} 17. Nxd4 {[%emt 0:00:41]} Nxd4 {[%emt 0:03:54]} 18. Qxd4 {[%emt 0:00:08]} O-O {[%emt 0:00:13]} 19. Qc3 {[%emt 0:01:19]} Qe7 {[%emt 0:05:20]} 20. Rb1 {[%emt 0:01:40]} Rd8 {[%emt 0:08:00]} 21. Bf1 {[%emt 0:12:09]} f5 {[%emt 0:06:54]} 22. Nd2 {[%emt 0:00:15]} b6 {[%emt 0:01:17]} 23. Nf3 {[%emt 0:05:17]} Bb7 {[%emt 0:09:39]} 24. Bg2 {[%emt 0:01:07]} e5 {[%emt 0:09:33]} 25. Re1 {[%emt 0:05:36]} e4 {[%emt 0:08:41]} 26. dxe4 {[%emt 0:12:00]} fxe4 {[%emt 0:03:27]} 27. Nd2 {[%emt 0:05:43]} Be5 {[%emt 0:00:10]} 28. Qc2 {[%emt 0:02:48]} Qb4 {[%emt 0:01:53]} 29. Re2 {[%emt 0:03:12]} Rd4 {[%emt 0:07:27]} 30. Qa2 {[%emt 0:11:01]} Qa5 {[%emt 0:03:38]} 31. Qc2 {[%emt 0:07:51]} Qa1+ {[%emt 0:03:23]} 32. Bf1 {[%emt 0:00:14]} Rd8 {[%emt 0:09:08]} 33. Nxe4 {[%emt 0:01:47]} Rd1 {[%emt 0:01:49]} 34. Nd2 {[%emt 0:00:05]} Bc8 {[%emt 0:00:34]} 35. Kg2 {[%emt 0:07:20]} Bb7+ {[%emt 0:02:42]} 36. f3 {[%emt 0:01:14]} Re1 {[%emt 0:01:21]} 37. Rxe1 {[%emt 0:00:46]} Qxe1 {[%emt 0:00:03]} 38. Qd3 {[%emt 0:00:05]} Bf6 {[%emt 0:03:24]} 39. Qe2 {[%emt 0:01:40]} Qxe2+ {[%emt 0:00:46]} 40. Bxe2 {[%emt 0:00:04]} Bc3 {[%emt 0:00:08]} 41. Nb3 {[%emt 0:00:39]} Bc6 {[%emt 0:01:02]} 42. Bd3 {[%emt 0:00:28]} Ba4 {[%emt 0:00:46]} 43. Nc1 {[%emt 0:00:08]} Bd1 {[%emt 0:00:25]} 44. Be4 {[%emt 0:00:40]} Kf7 {[%emt 0:01:47]} 45. Nd3 {[%emt 0:00:49]} Ke7 {[%emt 0:00:48]} 46. Nf4 {[%emt 0:01:47]} Kd6 {[%emt 0:00:57]} 47. Kf2 {[%emt 0:00:52]} Kc5 {[%emt 0:00:31]} 48. Nd5 {[%emt 0:08:24]} Bd4+ {[%emt 0:00:16]} 49. Ne3 {[%emt 0:00:33]} Kb4 {[%emt 0:01:57]} 50. Ke1 {[%emt 0:00:30]} Bb3 {[%emt 0:00:30]} 51. Kd2 {[%emt 0:00:24]} Bxe3+ {[%emt 0:00:21]} 52. Kxe3 {[%emt 0:00:04]} Kxc4 {[%emt 0:00:11]} 53. f4 {[%emt 0:00:36]} b5 {[%emt 0:00:22]} 54. Bd3+ {[%emt 0:00:32]} Kc5 {[%emt 0:00:05]} 55. Ke4 {[%emt 0:00:07]} Bc4 {[%emt 0:00:27]} 56. Bb1 {[%emt 0:00:11]} b4 {[%emt 0:00:41]} 57. f5 {[%emt 0:00:19]} b3 {[%emt 0:00:16]} 58. g4 {[%emt 0:01:20]} Be2 {[%emt 0:00:16]} 59. h3 {[%emt 0:00:22]} Kc4 {[%emt 0:00:40]} 60. Ke3 {[%emt 0:00:12]} Bd1 {[%emt 0:01:34]} 61. Kd2 {[%emt 0:00:03]} Bf3 {[%emt 0:00:08]} 62. Ke3 {[%emt 0:00:03]} Bd1 {[%emt 0:00:59]} 63. Kd2 {[%emt 0:00:04]} Bf3 {[%emt 0:00:01]} 64. Ke3 {[%emt 0:00:04]} Bd5 {[%emt 0:00:59]} 65. h4 {[%emt 0:00:04]} Kc3 {[%emt 0:00:14]} 66. g5 {[%emt 0:00:03]} hxg5 {[%emt 0:00:40]} 67. hxg5 {[%emt 0:00:04]} b2 {[%emt 0:00:31]} 1/2-1/2

[Event "1st Archibald 2019"]
[Site "Sochi"]
[Date "2019.05.18"]
[Round "8.19"]
[White "Kazimov, Farhan"]
[Black "Najdin, Danil"]
[Result "0-1"]
[ECO "C54"]
[WhiteElo "2146"]
[BlackElo "2314"]
[Annotator "NA"]
[PlyCount "98"]
[EventDate "2019.05.12"]
[EventType "swiss"]
[EventCountry "RUS"]
[SourceTitle "playchess.com"]
[Source "ChessBase"]
[SourceQuality "1"]
[TimeControl "5400+30"]

1. e4 {[%emt 0:00:00]} e5 {[%emt 0:00:33]} 2. Nf3 {[%emt 0:00:06]} Nc6 {[%emt 0:00:04]} 3. Bc4 {[%emt 0:01:42]} Nf6 {[%emt 0:00:43]} 4. d3 {[%emt 0:00:26]} Bc5 {[%emt 0:00:31]} 5. O-O {[%emt 0:00:27]} d6 {[%emt 0:00:47]} 6. h3 {[%emt 0:00:09]} h6 {[%emt 0:01:35]} 7. c3 {[%emt 0:00:16]} Bb6 {[%emt 0:00:46]} 8. b4 {[%emt 0:00:11]} g5 {[%emt 0:04:36]} 9. Be3 {[%emt 0:03:10]} g4 {[%emt 0:02:17]} 10. Nh4 {[%emt 0:01:00]} Nxe4 {[%emt 0:03:19]} 11. Bxb6 {[%emt 0:02:11]} axb6 {[%emt 0:00:49]} 12. g3 {[%emt 0:01:34]} Nf6 {[%emt 0:02:39]} 13. f4 {[%emt 0:00:49]} Rg8 {[%emt 0:02:17]} 14. fxe5 {[%emt 0:01:36]} Nxe5 {[%emt 0:00:41]} 15. Qe1 {[%emt 0:04:04]} Qe7 {[%emt 0:07:17]} 16. Nd2 {[%emt 0:02:01]} gxh3 {[%emt 0:04:17]} 17. Nf5 {[%emt 0:00:41]} Bxf5 {[%emt 0:00:26]} 18. Rxf5 {[%emt 0:00:03]} O-O-O {[%emt 0:06:44]} 19. d4 {[%emt 0:01:30]} h2+ {[%emt 0:01:18]} 20. Kh1 {[%emt 0:01:59]} Qd7 {[%emt 0:03:02]} 21. Rxf6 {[%emt 0:01:26]} Nxc4 {[%emt 0:00:34]} 22. Nxc4 {[%emt 0:00:07]} Qc6+ {[%emt 0:00:05]} 23. Kxh2 {[%emt 0:00:10]} Qxc4 {[%emt 0:00:05]} 24. Rf3 {[%emt 0:01:59]} Rde8 {[%emt 0:05:25]} 25. Re3 {[%emt 0:00:15]} Re6 {[%emt 0:00:14]} 26. Rxe6 {[%emt 0:00:24]} fxe6 {[%emt 0:00:12]} 27. Qe3 {[%emt 0:00:51]} Rg5 {[%emt 0:03:57]} 28. Kg1 {[%emt 0:00:17]} Kb8 {[%emt 0:03:45]} 29. a4 {[%emt 0:00:06]} e5 {[%emt 0:02:39]} 30. Rf1 {[%emt 0:02:03]} Qg8 {[%emt 0:03:33]} 31. Kh2 {[%emt 0:01:43]} Rh5+ {[%emt 0:02:45]} 32. Kg1 {[%emt 0:01:54]} Qa2 {[%emt 0:04:08]} 33. Rf2 {[%emt 0:03:05]} Qxa4 {[%emt 0:00:59]} 34. dxe5 {[%emt 0:00:06]} dxe5 {[%emt 0:00:47]} 35. Qd3 {[%emt 0:00:58]} Qa1+ {[%emt 0:03:02]} 36. Rf1 {[%emt 0:00:08]} Qa2 {[%emt 0:00:23]} 37. Rf8+ {[%emt 0:03:58]} Ka7 {[%emt 0:01:08]} 38. Rf2 {[%emt 0:00:04]} Rh1+ {[%emt 0:03:22]} 39. Kg2 {[%emt 0:00:47]} Rh2+ {[%emt 0:00:08]} 40. Kxh2 {[%emt 0:00:03]} Qxf2+ {[%emt 0:00:02]} 41. Kh3 {[%emt 0:00:00]} Qe1 {[%emt 0:04:48]} 42. Qd5 {[%emt 0:00:56]} Qe2 {[%emt 0:01:24]} 43. b5 {[%emt 0:03:25]} e4 {[%emt 0:01:19]} 44. c4 {[%emt 0:00:15]} e3 {[%emt 0:02:16]} 45. Qf7 {[%emt 0:00:27]} Qa2 {[%emt 0:00:34]} 46. Qxc7 {[%emt 0:00:32]} e2 {[%emt 0:00:09]} 47. Qe7 {[%emt 0:00:17]} Qd2 {[%emt 0:00:20]} 48. c5 {[%emt 0:01:07]} e1=Q {[%emt 0:00:14]} 49. cxb6+ {[%emt 0:00:06]} Kxb6 {[%emt 0:00:02]} 0-1

[Event "1st Archibald 2019"]
[Site "Sochi"]
[Date "2019.05.18"]
[Round "8.20"]
[White "Khudyakov, Stanislav"]
[Black "Alexeev, Alexey"]
[Result "1-0"]
[ECO "C19"]
[WhiteElo "2086"]
[BlackElo "2292"]
[Annotator "NA"]
[PlyCount "143"]
[EventDate "2019.05.12"]
[EventType "swiss"]
[EventCountry "RUS"]
[SourceTitle "playchess.com"]
[Source "ChessBase"]
[SourceQuality "1"]
[TimeControl "5400+30"]

1. e4 {[%emt 0:00:00]} e6 {[%emt 0:00:08]} 2. d4 {[%emt 0:00:05]} d5 {[%emt 0:00:04]} 3. Nc3 {[%emt 0:00:06]} Bb4 {[%emt 0:00:04]} 4. e5 {[%emt 0:00:06]} c5 {[%emt 0:00:03]} 5. a3 {[%emt 0:00:05]} Bxc3+ {[%emt 0:00:04]} 6. bxc3 {[%emt 0:00:05]} Ne7 {[%emt 0:00:05]} 7. Nf3 {[%emt 0:00:05]} Qa5 {[%emt 0:00:13]} 8. Qd2 {[%emt 0:00:54]} Nbc6 {[%emt 0:00:30]} 9. a4 {[%emt 0:03:26]} cxd4 {[%emt 0:02:23]} 10. cxd4 {[%emt 0:00:10]} Qxd2+ {[%emt 0:00:09]} 11. Kxd2 {[%emt 0:00:09]} f6 {[%emt 0:00:10]} 12. Ba3 {[%emt 0:07:08]} Na5 {[%emt 0:02:13]} 13. Bd3 {[%emt 0:09:44]} Bd7 {[%emt 0:00:27]} 14. Rhe1 {[%emt 0:00:14]} Rc8 {[%emt 0:00:21]} 15. exf6 {[%emt 0:08:30]} gxf6 {[%emt 0:01:31]} 16. g4 {[%emt 0:00:53]} Nc4+ {[%emt 0:00:38]} 17. Kc1 {[%emt 0:00:27]} Nxa3 {[%emt 0:03:10]} 18. Rxa3 {[%emt 0:00:06]} Nc6 {[%emt 0:00:49]} 19. h4 {[%emt 0:06:15]} h6 {[%emt 0:01:07]} 20. a5 {[%emt 0:00:51]} Ke7 {[%emt 0:00:19]} 21. Bg6 {[%emt 0:10:21]} Kd6 {[%emt 0:03:18]} 22. a6 {[%emt 0:01:05]} bxa6 {[%emt 0:00:40]} 23. Rxa6 {[%emt 0:00:38]} Rhg8 {[%emt 0:00:19]} 24. h5 {[%emt 0:00:15]} Rc7 {[%emt 0:00:52]} 25. Nh4 {[%emt 0:05:26]} Bc8 {[%emt 0:00:42]} 26. Ra4 {[%emt 0:00:18]} a5 {[%emt 0:02:27]} 27. f4 {[%emt 0:02:27]} Bd7 {[%emt 0:01:04]} 28. Kd2 {[%emt 0:04:18]} Ra7 {[%emt 0:04:23]} 29. c3 {[%emt 0:02:30]} Rb8 {[%emt 0:02:09]} 30. Ra2 {[%emt 0:00:26]} a4 {[%emt 0:00:19]} 31. g5 {[%emt 0:03:28]} hxg5 {[%emt 0:02:49]} 32. fxg5 {[%emt 0:00:03]} fxg5 {[%emt 0:00:06]} 33. Nf3 {[%emt 0:00:04]} a3 {[%emt 0:00:14]} 34. h6 {[%emt 0:01:31]} g4 {[%emt 0:01:07]} 35. Ng5 {[%emt 0:01:53]} Raa8 {[%emt 0:04:06]} 36. h7 {[%emt 0:01:04]} Na5 {[%emt 0:00:18]} 37. Bd3 {[%emt 0:00:39]} Ke7 {[%emt 0:00:39]} 38. Rf1 {[%emt 0:00:33]} g3 {[%emt 0:00:43]} 39. Rf7+ {[%emt 0:01:06]} Kd6 {[%emt 0:00:06]} 40. Rg7 {[%emt 0:00:16]} Nb3+ {[%emt 0:07:32]} 41. Kc2 {[%emt 0:04:06]} Ba4 {[%emt 0:00:33]} 42. Nf7+ {[%emt 0:00:04]} Kc6 {[%emt 0:00:27]} 43. Ne5+ {[%emt 0:01:58]} Kd6 {[%emt 0:01:33]} 44. Nf7+ {[%emt 0:01:22]} Kc6 {[%emt 0:00:36]} 45. Rxa3 {[%emt 0:00:50]} Nxd4+ {[%emt 0:01:26]} 46. Kd2 {[%emt 0:00:05]} Nb3+ {[%emt 0:00:25]} 47. Ke3 {[%emt 0:00:36]} Nc5 {[%emt 0:00:17]} 48. Ne5+ {[%emt 0:01:01]} Kb6 {[%emt 0:01:08]} 49. Rxg3 {[%emt 0:01:47]} Nxd3 {[%emt 0:00:45]} 50. Nd7+ {[%emt 0:00:15]} Bxd7 {[%emt 0:04:40]} 51. Rxa8 {[%emt 0:00:05]} Rxa8 {[%emt 0:00:04]} 52. Rg8 {[%emt 0:00:05]} Rxg8 {[%emt 0:00:27]} 53. hxg8=Q {[%emt 0:00:07]} Nc5 {[%emt 0:00:04]} 54. Qb8+ {[%emt 0:02:48]} Nb7 {[%emt 0:01:09]} 55. Kd4 {[%emt 0:00:14]} Kc6 {[%emt 0:10:07]} 56. Qa7 {[%emt 0:00:09]} Kc7 {[%emt 0:00:16]} 57. Ke5 {[%emt 0:01:17]} Bc8 {[%emt 0:02:52]} 58. Kf6 {[%emt 0:00:58]} Bd7 {[%emt 0:00:20]} 59. Ke7 {[%emt 0:00:14]} e5 {[%emt 0:01:22]} 60. Qa3 {[%emt 0:00:06]} e4 {[%emt 0:00:46]} 61. Qb4 {[%emt 0:00:05]} Bc6 {[%emt 0:01:33]} 62. Qd4 {[%emt 0:00:39]} Na5 {[%emt 0:02:51]} 63. Qa7+ {[%emt 0:00:13]} Nb7 {[%emt 0:00:06]} 64. Ke6 {[%emt 0:00:12]} Bd7+ {[%emt 0:06:25]} 65. Kxd5 {[%emt 0:00:25]} Bc6+ {[%emt 0:00:11]} 66. Ke5 {[%emt 0:00:33]} Kd7 {[%emt 0:00:19]} 67. c4 {[%emt 0:02:48]} Ke7 {[%emt 0:00:51]} 68. Qd4 {[%emt 0:01:45]} e3 {[%emt 0:01:02]} 69. Qxe3 {[%emt 0:00:10]} Kd7 {[%emt 0:00:05]} 70. Qb6 {[%emt 0:01:00]} Bg2 {[%emt 0:00:38]} 71. Qe6+ {[%emt 0:00:39]} Kc7 {[%emt 0:00:32]} 72. Qf7+ {[%emt 0:00:04]} 1-0

[Event "1st Archibald 2019"]
[Site "Sochi"]
[Date "2019.05.18"]
[Round "8.21"]
[White "Azimov, Ilyas"]
[Black "Yarikov, Artem"]
[Result "1/2-1/2"]
[ECO "D00"]
[WhiteElo "2223"]
[BlackElo "1619"]
[Annotator "NA"]
[PlyCount "173"]
[EventDate "2019.05.12"]
[EventType "swiss"]
[EventCountry "RUS"]
[SourceTitle "playchess.com"]
[Source "ChessBase"]
[SourceQuality "1"]
[TimeControl "5400+30"]

1. d4 {[%emt 0:00:00]} d5 {[%emt 0:00:07]} 2. Nc3 {[%emt 0:00:21]} Nf6 {[%emt 0:00:32]} 3. Bf4 {[%emt 0:00:05]} c6 {[%emt 0:00:37]} 4. e3 {[%emt 0:00:05]} Bf5 {[%emt 0:00:12]} 5. f3 {[%emt 0:00:07]} h5 {[%emt 0:02:02]} 6. Bd3 {[%emt 0:00:11]} Bxd3 {[%emt 0:00:10]} 7. Qxd3 {[%emt 0:00:05]} e6 {[%emt 0:00:19]} 8. e4 {[%emt 0:00:28]} Be7 {[%emt 0:02:01]} 9. e5 {[%emt 0:00:18]} Nfd7 {[%emt 0:00:16]} 10. Nge2 {[%emt 0:00:09]} c5 {[%emt 0:02:34]} 11. O-O {[%emt 0:03:33]} Nc6 {[%emt 0:03:06]} 12. dxc5 {[%emt 0:06:08]} Bxc5+ {[%emt 0:02:05]} 13. Kh1 {[%emt 0:00:03]} O-O {[%emt 0:03:06]} 14. Rae1 {[%emt 0:04:43]} Ndxe5 {[%emt 0:11:36]} 15. Qd2 {[%emt 0:01:03]} Nc4 {[%emt 0:05:05]} 16. Qc1 {[%emt 0:00:26]} e5 {[%emt 0:03:21]} 17. Bg5 {[%emt 0:00:55]} f6 {[%emt 0:00:32]} 18. Bd2 {[%emt 0:00:08]} Nxd2 {[%emt 0:06:03]} 19. Qxd2 {[%emt 0:00:26]} d4 {[%emt 0:01:59]} 20. Ne4 {[%emt 0:01:23]} Bb4 {[%emt 0:02:43]} 21. c3 {[%emt 0:00:01]} dxc3 {[%emt 0:00:18]} 22. Qc2 {[%emt 0:00:03]} cxb2 {[%emt 0:03:52]} 23. Rd1 {[%emt 0:00:04]} Qe7 {[%emt 0:02:03]} 24. Qxb2 {[%emt 0:05:39]} Rfd8 {[%emt 0:00:21]} 25. Rxd8+ {[%emt 0:00:24]} Rxd8 {[%emt 0:00:07]} 26. N2g3 {[%emt 0:05:14]} Qf7 {[%emt 0:00:00]} 27. Nf5 {[%emt 0:03:09]} Bf8 {[%emt 0:02:05]} 28. h4 {[%emt 0:02:24]} g6 {[%emt 0:07:57]} 29. Ne3 {[%emt 0:02:07]} Bh6 {[%emt 0:01:45]} 30. Qc3 {[%emt 0:25:47]} f5 {[%emt 0:04:13]} 31. Nf2 {[%emt 0:06:04]} Bxe3 {[%emt 0:02:52]} 32. Qxe3 {[%emt 0:00:05]} Qxa2 {[%emt 0:01:41]} 33. Nh3 {[%emt 0:02:00]} Kg7 {[%emt 0:04:11]} 34. f4 {[%emt 0:04:46]} Qd2 {[%emt 0:02:23]} 35. Qc5 {[%emt 0:04:35]} Qd4 {[%emt 0:04:26]} 36. Qc1 {[%emt 0:01:11]} e4 {[%emt 0:01:21]} 37. Ng5 {[%emt 0:00:10]} Rd6 {[%emt 0:00:58]} 38. Qb1 {[%emt 0:01:06]} b6 {[%emt 0:01:00]} 39. Qa2 {[%emt 0:01:05]} Qf6 {[%emt 0:00:44]} 40. Qa6 {[%emt 0:00:36]} Nd4 {[%emt 0:03:35]} 41. Re1 {[%emt 0:00:00]} Kg8 {[%emt 0:01:40]} 42. Qa2+ {[%emt 0:00:00]} Kg7 {[%emt 0:07:53]} 43. Re3 {[%emt 0:00:00]} a5 {[%emt 0:03:57]} 44. Qa1 {[%emt 0:00:00]} a4 {[%emt 0:01:38]} 45. Re1 {[%emt 0:00:00]} Kg8 {[%emt 0:02:34]} 46. Rd1 {[%emt 0:00:00]} Rd5 {[%emt 0:00:30]} 47. Qa2 {[%emt 0:00:00]} Kh8 {[%emt 0:00:30]} 48. Qb2 {[%emt 0:00:18]} b5 {[%emt 0:00:30]} 49. Qb4 {[%emt 0:00:00]} Kg8 {[%emt 0:00:30]} 50. Qc3 {[%emt 0:00:51]} Qd8 {[%emt 0:00:00]} 51. Rd2 {[%emt 0:01:39]} Qd7 {[%emt 0:00:24]} 52. Rd1 {[%emt 0:01:36]} Qd8 {[%emt 0:00:04]} 53. Qa3 {[%emt 0:01:34]} Qd6 {[%emt 0:00:35]} 54. Qc1 {[%emt 0:01:18]} Qd7 {[%emt 0:00:19]} 55. Qd2 {[%emt 0:00:33]} Qd6 {[%emt 0:00:46]} 56. Qa5 {[%emt 0:01:01]} Qd8 {[%emt 0:00:46]} 57. Qa6 {[%emt 0:00:50]} Rd6 {[%emt 0:00:21]} 58. Qa7 {[%emt 0:00:53]} Rd7 {[%emt 0:00:40]} 59. Qa6 {[%emt 0:03:09]} Rd6 {[%emt 0:00:14]} 60. Qb7 {[%emt 0:00:25]} Qd7 {[%emt 0:00:17]} 61. Qb8+ {[%emt 0:01:10]} Kg7 {[%emt 0:00:18]} 62. Rc1 {[%emt 0:00:46]} Nc6 {[%emt 0:00:21]} 63. Qxb5 {[%emt 0:00:28]} Rd1+ {[%emt 0:00:21]} 64. Rxd1 {[%emt 0:00:01]} Qxd1+ {[%emt 0:00:06]} 65. Kh2 {[%emt 0:00:01]} Qd6 {[%emt 0:00:31]} 66. Qb7+ {[%emt 0:00:07]} Ne7 {[%emt 0:00:25]} 67. Qb2+ {[%emt 0:00:31]} Qf6 {[%emt 0:00:24]} 68. Qa2 {[%emt 0:00:10]} e3 {[%emt 0:00:30]} 69. Qxa4 {[%emt 0:02:46]} Ng8 {[%emt 0:01:04]} 70. Qc4 {[%emt 0:01:33]} Nh6 {[%emt 0:00:41]} 71. Kg3 {[%emt 0:00:29]} Nf7 {[%emt 0:00:26]} 72. Ne6+ {[%emt 0:00:36]} Kh6 {[%emt 0:00:42]} 73. Ng5 {[%emt 0:01:00]} Kg7 {[%emt 0:00:04]} 74. Ne6+ {[%emt 0:00:32]} Kh6 {[%emt 0:00:05]} 75. Ng5 {[%emt 0:02:48]} Kg7 {[%emt 0:00:09]} 76. Kf3 {[%emt 0:00:38]} Nxg5+ {[%emt 0:00:22]} 77. hxg5 {[%emt 0:00:05]} Qe7 {[%emt 0:00:49]} 78. Qd4+ {[%emt 0:00:00]} Kf7 {[%emt 0:02:32]} 79. Qxe3 {[%emt 0:00:07]} Qxe3+ {[%emt 0:00:00]} 80. Kxe3 {[%emt 0:00:10]} Ke6 {[%emt 0:00:04]} 81. Kd4 {[%emt 0:00:02]} Kd6 {[%emt 0:00:18]} 82. g3 {[%emt 0:00:11]} Ke6 {[%emt 0:00:02]} 83. Kc5 {[%emt 0:00:00]} Ke7 {[%emt 0:00:03]} 84. Kc6 {[%emt 0:00:00]} Ke6 {[%emt 0:00:00]} 85. Kc5 {[%emt 0:00:00]} Ke7 {[%emt 0:00:02]} 86. Kc4 {[%emt 0:00:25]} Ke6 {[%emt 0:00:05]} 87. Kc5 {[%emt 0:00:27]} 1/2-1/2

[Event "1st Archibald 2019"]
[Site "Sochi"]
[Date "2019.05.18"]
[Round "8.21"]
[White "Azimov, Ilyas"]
[Black "Yarikov, Artem"]
[Result "*"]
[ECO "D00"]
[WhiteElo "2223"]
[BlackElo "1619"]
[Annotator "NA"]
[PlyCount "47"]
[EventDate "2019.05.12"]
[EventType "swiss"]
[EventCountry "RUS"]
[SourceTitle "playchess.com"]
[Source "ChessBase"]
[SourceQuality "1"]
[TimeControl "5400+30"]

1. d4 {[%emt 0:00:00]} d5 {[%emt 0:00:07]} 2. Nc3 {[%emt 0:00:21]} Nf6 {[%emt 0:00:32]} 3. Bf4 {[%emt 0:00:05]} c6 {[%emt 0:00:37]} 4. e3 {[%emt 0:00:05]} Bf5 {[%emt 0:00:12]} 5. f3 {[%emt 0:00:07]} h5 {[%emt 0:02:02]} 6. Bd3 {[%emt 0:00:11]} Bxd3 {[%emt 0:00:10]} 7. Qxd3 {[%emt 0:00:05]} e6 {[%emt 0:00:19]} 8. e4 {[%emt 0:00:28]} Be7 {[%emt 0:02:01]} 9. e5 {[%emt 0:00:18]} Nfd7 {[%emt 0:00:16]} 10. Nge2 {[%emt 0:00:09]} c5 {[%emt 0:02:34]} 11. O-O {[%emt 0:03:33]} Nc6 {[%emt 0:03:06]} 12. dxc5 {[%emt 0:06:08]} Bxc5+ {[%emt 0:02:05]} 13. Kh1 {[%emt 0:00:03]} O-O {[%emt 0:03:06]} 14. Rae1 {[%emt 0:04:43]} Ndxe5 {[%emt 0:11:36]} 15. Qd2 {[%emt 0:01:03]} Nc4 {[%emt 0:05:05]} 16. Qc1 {[%emt 0:00:26]} e5 {[%emt 0:03:21]} 17. Bg5 {[%emt 0:00:55]} f6 {[%emt 0:00:32]} 18. Bd2 {[%emt 0:00:08]} Nxd2 {[%emt 0:06:03]} 19. Qxd2 {[%emt 0:00:26]} d4 {[%emt 0:01:59]} 20. Ne4 {[%emt 0:01:23]} Bb4 {[%emt 0:02:43]} 21. c3 {[%emt 0:00:01]} dxc3 {[%emt 0:00:18]} 22. Qc2 {[%emt 0:00:03]} cxb2 {[%emt 0:03:52]} 23. Rd1 {[%emt 0:00:04]} Qe8 {[%emt 0:02:03]} 24. Qxb2 {[%emt 0:05:39]} *